bitfinex/quotes_SOLUSD_20250402
["timestamp","ask_amount","ask_price","bid_price","bid_amount"]
[1743633626828,10.62,120.37,120.32,6.5233]
[1743633627126,62.00556551,120.37,120.32,6.5233]
[1743633627531,43.21992708,120.36,120.28,18.7447]
[1743633627712,43.07776551,120.35,120.28,18.7447]
[1743633627898,43.07776551,120.35,120.28,27.0584]
[1743633628211,8.309,120.35,120.28,27.0584]
[1743633628420,51.38676551,120.35,120.28,27.0584]
[1743633628905,43.07776551,120.3,120.24,6.3267]
[1743633629231,10.6,120.29,120.28,0.03]
[1743633629403,53.67776551,120.29,120.28,0.03]
[1743633629610,10.6,120.29,120.28,0.03]
[1743633630111,54.10425022,120.29,120.28,0.03]
[1743633630320,74.63795022,120.29,120.28,0.03]
[1743633630705,22.8205,120.29,120.28,0.03]
[1743633630906,65.89826551,120.29,120.28,0.03]
[1743633631108,74.63795022,120.29,120.28,0.03]
[1743633631511,31.56018471,120.29,120.28,0.03]
[1743633631822,96.27988966,120.29,120.28,0.03]
[1743633632134,12.5742,120.32,120.28,0.03]
[1743633632309,73.03090495,120.32,120.28,0.03]
[1743633632508,64.71970495,120.3,120.28,0.03]
[1743633632715,8.3112,120.32,120.28,0.03]
[1743633633019,64.71970495,120.31,120.28,0.03]
[1743633633332,18.9107,120.33,120.28,0.03]
[1743633633503,64.71970495,120.31,120.28,0.03]
[1743633633906,65.14618966,120.29,120.28,0.03]
[1743633634315,8.73968471,120.29,120.28,0.03]
[1743633634626,64.71970495,120.29,120.28,0.03]
[1743633634797,8.3128,120.3,120.28,0.03]
[1743633635002,64.71970495,120.29,120.28,0.03]
[1743633635402,65.14618966,120.29,120.28,0.03]
[1743633635606,65.14618966,120.29,120.23,0.03]
[1743633635607,0.14216157,120.26,120.23,0.03]
[1743633635821,64.71970495,120.24,120.23,0.03]
[1743633636412,73.03630495,120.24,120.23,0.03]
[1743633636627,10.68,120.25,120.23,0.03]
[1743633636807,75.39970495,120.25,120.23,0.03]
[1743633637005,83.71570495,120.25,120.23,0.03]
[1743633637207,64.71970495,120.24,120.23,0.03]
[1743633638234,18.996,120.25,120.23,0.03]
[1743633638605,83.71570495,120.25,120.23,0.03]
[1743633639316,64.71970495,120.24,120.23,0.03]
[1743633640138,12.607,120.28,120.23,0.03]
[1743633640310,12.4177,120.33,120.23,0.03]
[1743633640513,10.62,120.32,120.25,8.316]
[1743633640729,75.33970495,120.32,120.25,8.316]
[1743633640927,64.71970495,120.3,120.24,6.5421]
[1743633641114,64.71970495,120.29,120.24,6.5421]
[1743633641523,64.71970495,120.3,120.24,14.8586]
[1743633641836,18.9312,120.32,120.24,6.5421]
[1743633641837,64.71970495,120.31,120.24,6.5421]
[1743633642018,64.71970495,120.3,120.24,6.5421]
[1743633642219,64.71970495,120.29,120.24,6.5421]
[1743633642413,73.03310495,120.29,120.24,6.5421]
[1743633642824,8.3134,120.29,120.24,6.5421]
[1743633643049,64.71970495,120.28,120.24,6.5421]
[1743633643222,10.56,120.27,120.24,6.5421]
[1743633643814,75.27970495,120.27,120.23,0.03]
[1743633644032,10.56,120.27,120.23,0.03]
[1743633644219,64.71970495,120.24,120.23,0.03]
[1743633644425,0.42648471,120.26,120.23,0.03]
[1743633644630,10.56,120.27,120.23,0.03]
[1743633644820,64.71970495,120.26,120.23,0.03]
[1743633645011,64.71970495,120.25,120.23,0.03]
[1743633645215,64.71970495,120.24,120.23,0.03]
[1743633646337,0.28432314,120.26,120.23,0.03]
[1743633646517,64.71970495,120.24,120.23,0.03]
[1743633646713,10.56,120.27,120.23,0.03]
[1743633647316,64.71970495,120.24,120.23,0.03]
[1743633647736,64.86186652,120.24,120.23,0.03]
[1743633648037,64.71970495,120.25,120.23,0.03]
[1743633648746,64.71970495,120.3,120.23,0.03]
[1743633648936,64.71970495,120.29,120.23,0.03]
[1743633649117,64.71970495,120.3,120.23,0.03]
[1743633649835,64.71970495,120.29,120.23,0.03]
[1743633650134,64.71970495,120.3,120.23,0.03]
[1743633650561,82.1,120.35,120.27,8.3146]
[1743633650759,64.86186652,120.35,120.27,8.3146]
[1743633651053,0.063,120.36,120.27,29.1011]
[1743633651421,0.063,120.36,120.28,19.3827]
[1743633651633,0.063,120.36,120.31,26.0]
[1743633651950,0.063,120.36,120.29,10.46]
[1743633652148,64.78270495,120.36,120.28,19.3827]
[1743633652446,64.71970495,120.34,120.28,6.5138]
[1743633652635,64.71970495,120.33,120.28,6.5138]
[1743633652953,0.14216157,120.34,120.28,14.8275]
[1743633653146,64.71970495,120.35,120.28,6.5138]
[1743633653646,64.71970495,120.34,120.28,6.5138]
[1743633653940,0.063,120.35,120.28,6.5138]
[1743633654138,64.78270495,120.35,120.28,14.8276]
[1743633654346,64.78270495,120.35,120.28,6.5138]
[1743633654555,0.063,120.35,120.28,5.5138]
[1743633654757,64.78270495,120.35,120.28,5.5138]
[1743633655251,0.20516157,120.35,120.28,5.5138]
[1743633655565,64.78270495,120.35,120.28,13.8274]
[1743633655732,0.063,120.35,120.28,13.8274]
[1743633656242,0.063,120.35,120.28,5.5138]
[1743633656243,64.78270495,120.35,120.28,5.5138]
[1743633656548,64.78270495,120.35,120.28,13.8274]
[1743633656549,0.063,120.35,120.28,13.8274]
[1743633656927,0.063,120.35,120.28,34.6122]
[1743633657146,0.063,120.35,120.29,12.84]
[1743633657347,0.063,120.35,120.32,26.0]
[1743633658552,0.063,120.35,120.29,23.50432314]
[1743633658750,0.063,120.35,120.29,12.84]
[1743633658923,0.063,120.35,120.3,8.3125]
[1743633659359,64.71970495,120.34,120.29,12.84]
[1743633659657,0.063,120.35,120.29,21.1532]
[1743633660764,64.78270495,120.35,120.29,12.84]
[1743633660970,0.063,120.35,120.29,21.1531]
[1743633661332,0.063,120.35,120.29,21.153]
[1743633661741,0.063,120.35,120.32,26.0]
[1743633662348,0.063,120.35,120.29,21.1528]
[1743633662734,0.063,120.35,120.29,41.9359]
[1743633662935,0.063,120.35,120.33,8.3104]
[1743633664246,0.063,120.35,120.3,8.3125]
[1743633664452,0.063,120.35,120.29,21.1529]
[1743633664828,0.063,120.35,120.29,12.84]
[1743633665332,90.86186652,120.34,120.28,5.5138]
[1743633665538,0.42648471,120.28,120.23,0.03]
[1743633665753,64.71970495,120.26,120.23,0.03]
[1743633665932,75.11970495,120.27,120.23,0.03]
[1743633666333,10.4,120.27,120.23,0.03]
[1743633666838,10.4,120.27,120.23,34.3471]
[1743633667033,10.4,120.31,120.23,55.1405]
[1743633667247,75.11970495,120.31,120.23,34.3471]
[1743633667449,10.4,120.31,120.23,34.3471]
[1743633667834,64.71970495,120.28,120.23,0.03]
[1743633668155,0.14216157,120.27,120.23,0.03]
[1743633668337,75.13970495,120.26,120.23,0.03]
[1743633668858,64.71970495,120.24,120.23,0.03]
[1743633669376,73.17846652,120.24,120.23,0.03]
[1743633669541,0.14216157,120.24,120.23,0.03]
[1743633670074,64.86186652,120.24,120.23,0.03]
[1743633670240,64.86186652,120.25,120.23,0.03]
[1743633670442,64.86186652,120.24,120.23,0.03]
[1743633670940,129.86589461,120.24,120.23,0.03]
[1743633671146,8.3201,120.19,120.15,0.03]
[1743633671358,10.96648471,120.18,120.15,0.03]
[1743633671541,75.54402809,120.18,120.15,0.03]
[1743633671741,64.86186652,120.16,120.15,0.03]
[1743633672259,64.71970495,120.16,120.15,0.03]
[1743633672449,10.98648471,120.16,120.15,0.03]
[1743633672650,75.70618966,120.16,120.15,0.03]
[1743633673159,10.56,120.16,120.15,0.03]
[1743633673362,0.14216157,120.18,120.15,0.03]
[1743633673669,10.70216157,120.16,120.15,0.03]
[1743633673843,10.56,120.16,120.15,0.03]
[1743633675957,10.62,120.19,120.15,0.03]
[1743633676138,64.71970495,120.21,120.15,0.03]
[1743633676342,10.62,120.2,120.15,0.03]
[1743633677242,10.62,120.22,120.15,0.03]
[1743633677547,75.33970495,120.22,120.15,0.03]
[1743633677742,0.14216157,120.21,120.15,0.03]
[1743633677961,75.33970495,120.22,120.15,0.03]
[1743633678363,0.14216157,120.24,120.15,0.03]
[1743633678562,10.62,120.23,120.15,0.03]
[1743633679459,10.62,120.23,120.16,18.2048]
[1743633680366,64.71970495,120.26,120.16,18.2048]
[1743633680678,10.58,120.25,120.16,18.2048]
[1743633681244,64.71970495,120.25,120.17,29.1253]
[1743633681448,64.71970495,120.24,120.17,8.3215]
[1743633681643,10.58,120.25,120.17,8.3215]
[1743633681644,64.71970495,120.23,120.17,8.3215]
[1743633681946,64.71970495,120.24,120.17,8.3215]
[1743633682146,64.71970495,120.24,120.16,18.2048]
[1743633682147,64.71970495,120.22,120.16,26.5268]
[1743633682371,64.71970495,120.21,120.16,6.1894]
[1743633682553,10.58,120.2,120.16,6.1894]
[1743633682754,10.58,120.2,120.16,14.5116]
[1743633683561,10.58,120.21,120.16,14.5116]
[1743633685350,75.29970495,120.21,120.16,14.5115]
[1743633685964,64.71970495,120.2,120.16,6.1894]
[1743633686271,10.58,120.21,120.16,14.5115]
[1743633686648,10.58,120.21,120.16,6.1894]
[1743633686852,64.71970495,120.2,120.16,6.1894]
[1743633687068,75.29970495,120.21,120.16,14.5115]
[1743633687273,10.58,120.21,120.16,14.5115]
[1743633687450,75.29970495,120.21,120.16,14.5115]
[1743633687652,53.7743378,120.21,120.16,14.5115]
[1743633688056,10.58,120.21,120.16,14.5115]
[1743633688260,10.58,120.21,120.16,6.1894]
[1743633688460,10.58,120.21,120.16,14.5115]
[1743633688656,10.58,120.21,120.16,6.1894]
[1743633689161,53.7743378,120.21,120.16,6.1894]
[1743633689367,62.0931378,120.21,120.16,6.1894]
[1743633689569,10.58,120.21,120.16,6.1894]
[1743633689752,53.7743378,120.21,120.16,14.5116]
[1743633690154,43.1943378,120.2,120.16,6.1894]
[1743633690973,43.1943378,120.2,120.15,0.03]
[1743633690974,0.14216157,120.16,120.15,0.03]
[1743633691275,53.7343378,120.16,120.15,0.03]
[1743633691461,62.0565378,120.16,120.15,0.03]
[1743633691658,62.19869937,120.16,120.15,0.03]
[1743633692370,19.00436157,120.16,120.15,0.03]
[1743633692572,10.54,120.16,120.15,0.03]
[1743633694579,62.0565378,120.16,120.15,0.03]
[1743633694776,62.19869937,120.16,120.15,0.03]
[1743633695771,62.0565378,120.16,120.15,0.03]
[1743633696258,62.19869937,120.16,120.15,0.03]
[1743633697159,87.36302251,120.16,120.15,0.0001]
[1743633697355,108.16852251,120.16,120.13,0.03]
[1743633697569,102.82442251,120.14,120.13,0.03]
[1743633698373,77.94442251,120.14,120.13,0.03]
[1743633699155,8.46576157,120.14,120.13,0.03]
[1743633699368,51.94442251,120.14,120.13,0.03]
[1743633699579,64.92012251,120.14,120.13,0.03]
[1743633699970,0.14216157,120.13,120.1,20.03]
[1743633700282,8.3236,120.14,120.1,20.03]
[1743633700584,43.1943378,120.13,120.1,20.03]
[1743633701083,43.1943378,120.13,120.1,19.03]
[1743633702074,92.64,120.16,120.1,19.03]
[1743633702266,61.8972378,120.15,120.1,19.03]
[1743633702472,43.1943378,120.13,120.1,19.03]
[1743633703362,43.1943378,120.12,120.1,19.03]
[1743633703561,0.42648471,120.14,120.1,19.03]
[1743633704062,8.325,120.12,120.1,19.03]
[1743633704367,8.325,120.12,120.0,78.8015145]
[1743633704368,135.6543378,120.11,120.0,78.8015145]
[1743633704582,43.1943378,120.09,120.0,78.8015145]
[1743633705064,10.36,120.08,120.0,78.8015145]
[1743633705274,10.36,120.08,120.0,120.4681145]
[1743633705673,10.36,120.08,120.0,78.8015145]
[1743633706469,53.5543378,120.08,120.0,57.9682145]
[1743633706786,10.36,120.08,120.0,57.9682145]
[1743633707178,82.24216157,120.13,120.03,26.0]
[1743633707179,82.1,120.13,120.03,26.0]
[1743633707376,18.645,120.12,120.03,26.0]
[1743633707687,43.1943378,120.11,120.04,6.6538]
[1743633707996,8.327,120.09,120.04,6.6538]
[1743633708289,10.32,120.12,120.05,12.2684]
[1743633708785,18.645,120.12,120.05,12.2684]
[1743633708987,10.32,120.12,120.05,12.2684]
[1743633709871,61.8394378,120.12,120.05,12.2684]
[1743633710183,61.8394378,120.12,120.05,20.5982]
[1743633710184,18.6451,120.12,120.05,20.5982]
[1743633710381,61.8394378,120.12,120.05,12.2684]
[1743633710637,43.1943378,120.11,120.05,12.2684]
[1743633710768,43.1943378,120.1,120.05,12.2684]
[1743633711393,68.0743378,120.11,120.05,12.2684]
[1743633711698,43.1943378,120.09,120.04,6.6538]
[1743633711875,68.0743378,120.09,120.04,6.6538]
[1743633712075,43.1943378,120.07,120.02,12.2445]
[1743633712275,24.88,120.05,120.0,49.5462145]
[1743633712488,68.0743378,120.05,120.0,49.5462145]
[1743633712789,68.0743378,120.05,119.91,5.14216157]
[1743633712790,20.0,119.95,119.86,8.343]
[1743633712994,43.1943378,119.9,119.87,30.0]
[1743633713201,10.24,119.89,119.86,15.8031884]
[1743633713401,10.24,119.92,119.86,15.8031884]
[1743633713571,10.24,119.92,119.86,36.6607884]
[1743633713773,10.24,119.92,119.86,28.3177884]
[1743633713996,10.24,119.92,119.86,20.8576]
[1743633714271,0.5,119.96,119.88,0.03]
[1743633714488,10.28,119.95,119.88,0.03]
[1743633714702,0.5,119.96,119.88,0.03]
[1743633715081,10.76,119.97,119.88,0.03]
[1743633715490,0.5,119.96,119.88,0.03]
[1743633715676,0.5,119.96,119.89,26.0]
[1743633715877,10.78,120.05,119.93,26.0]
[1743633716076,0.5,120.02,119.97,26.0]
[1743633716481,10.28,120.04,119.97,26.0]
[1743633717082,10.78,120.04,119.97,26.0]
[1743633718181,10.28,120.04,119.97,34.3352]
[1743633718388,0.5,120.03,119.97,26.0]
[1743633719105,0.5,120.0,119.91,8.3395]
[1743633719400,0.5,119.99,119.94,26.0]
[1743633719581,18.6106,120.04,119.94,26.0]
[1743633719582,0.5,120.01,119.94,26.0]
[1743633719984,0.5,120.02,119.94,26.0]
[1743633720190,0.5,120.0,119.94,34.3369]
[1743633720411,8.832,120.02,119.94,34.3369]
[1743633720580,0.5,120.0,119.94,34.3369]
[1743633720779,0.5,120.03,119.94,34.3369]
[1743633720994,10.78,120.04,119.94,65.4606]
[1743633721308,10.28,120.04,119.94,65.4606]
[1743633721510,0.5,120.03,119.94,65.4606]
[1743633721710,0.5,120.02,119.94,34.3369]
[1743633722018,0.5,120.01,119.94,34.3369]
[1743633722187,0.5,120.03,119.94,34.3369]
[1743633722386,0.5,120.05,119.94,55.1806]
[1743633722807,0.5,120.04,119.94,55.1806]
[1743633723182,10.28,120.07,119.94,55.1806]
[1743633723400,10.28,120.07,119.98,26.0]
[1743633723706,10.28,120.07,119.95,12.0851]
[1743633723707,10.78,120.07,119.99,26.0]
[1743633724083,10.28,120.07,120.0,14.6961]
[1743633724281,10.78,120.07,120.0,14.6961]
[1743633724483,0.5,120.05,120.0,6.3628]
[1743633725013,0.5,120.04,120.0,6.3628]
[1743633725509,0.5,120.01,119.95,18.6409]
[1743633725682,10.34,120.02,119.95,26.9774]
[1743633725880,0.063,120.01,119.96,0.42648471]
[1743633726098,0.063,120.01,120.0,26.0]
[1743633727187,10.34,120.07,120.02,26.0]
[1743633727392,0.5,120.08,120.02,26.0]
[1743633727587,10.32,120.1,120.02,26.0]
[1743633728010,0.063,120.11,120.03,0.42648471]
[1743633728211,0.063,120.11,120.07,26.0]
[1743633728588,0.5,120.1,120.04,14.4573]
[1743633728888,0.563,120.11,120.04,14.4573]
[1743633729220,0.5,120.1,120.04,14.4573]
[1743633729409,0.563,120.11,120.04,14.4573]
[1743633730118,0.5,120.1,120.04,14.4573]
[1743633730624,0.5,120.09,120.04,6.1268]
[1743633730822,0.5,120.09,120.04,14.4572]
[1743633730989,0.5,120.1,120.04,14.4572]
[1743633731492,0.5,120.09,120.04,14.4572]
[1743633731890,8.8887,120.11,120.04,6.1268]
[1743633732228,0.5,120.06,119.98,35.2073]
[1743633732426,0.5,120.06,119.98,14.3705]
[1743633732895,0.5,120.05,119.98,14.3705]
[1743633734007,0.5,120.05,119.98,35.2073]
[1743633734393,0.5,120.04,119.98,14.3705]
[1743633736215,8.8302,120.05,119.98,14.3705]
[1743633736428,0.5,120.04,119.98,14.3705]
[1743633736791,0.5,120.03,119.98,6.0358]
[1743633736996,0.5,120.02,119.98,14.3705]
[1743633737412,0.5,120.03,119.98,14.3705]
[1743633737604,0.5,120.04,119.98,14.3705]
[1743633737798,0.5,120.06,119.98,13.8705]
[1743633738016,19.1286,120.07,119.98,34.7073]
[1743633738215,0.063,120.03,119.98,34.7073]
[1743633739713,0.063,120.03,119.98,13.8705]
[1743633740031,0.063,120.03,119.98,5.5358]
[1743633740323,0.563,120.03,119.98,13.8703]
[1743633740704,0.063,120.03,119.98,13.8703]
[1743633741032,0.563,120.03,119.98,13.8703]
[1743633741199,0.563,120.03,119.98,5.5358]
[1743633741536,0.563,120.03,119.95,32.9259]
[1743633741537,75.8249399,120.03,119.95,12.0851]
[1743633741829,0.5,120.0,119.95,12.0851]
[1743633742140,0.5,120.0,119.95,20.4217]
[1743633742431,0.5,120.02,119.95,41.2637]
[1743633743008,10.243,120.03,119.95,41.2637]
[1743633743214,10.243,120.03,119.98,26.0]
[1743633743822,10.743,120.03,119.98,26.0]
[1743633744026,10.243,120.03,119.98,34.3345]
[1743633744321,10.243,120.03,119.96,20.8386]
[1743633744322,0.5,120.02,119.96,8.3361]
[1743633744528,0.5,120.02,119.95,20.4215]
[1743633745325,0.5,120.02,119.95,41.2635]
[1743633745634,0.5,120.02,119.95,20.4215]
[1743633745831,0.5,120.01,119.95,20.4215]
[1743633747215,0.5,120.0,119.95,12.0851]
[1743633747404,0.5,119.97,119.94,6.201]
[1743633748720,10.62,119.98,119.94,6.201]
[1743633748921,10.12,119.98,119.94,14.5382]
[1743633749423,0.5,119.99,119.94,14.5382]
[1743633749720,0.5,120.0,119.94,14.5382]
[1743633749921,0.5,119.99,119.94,14.5382]
[1743633750311,0.5,119.98,119.94,6.201]
[1743633751227,0.5,119.98,119.94,14.5384]
[1743633751409,10.06,120.0,119.94,14.5383]
[1743633751609,0.5,119.99,119.94,14.5383]
[1743633751818,10.06,120.0,119.94,35.382]
[1743633752024,10.06,120.0,119.94,14.5383]
[1743633752414,10.06,120.0,119.94,14.5683]
[1743633752732,10.06,120.0,119.94,35.412]
[1743633753116,10.56,120.0,119.94,35.412]
[1743633753320,0.5,119.99,119.94,14.5683]
[1743633754632,0.563,120.03,119.97,26.0]
[1743633755430,0.063,120.03,119.97,26.0]
[1743633755650,0.563,120.03,119.97,26.0]
[1743633756009,0.563,120.03,119.98,8.3347]
[1743633756717,0.063,120.03,119.98,8.3347]
[1743633757035,0.563,120.03,119.98,8.3347]
[1743633759526,0.5,120.02,119.98,8.3347]
[1743633759732,0.563,120.03,119.98,8.3347]
[1743633759938,0.063,120.03,119.98,8.3347]
[1743633760257,0.563,120.03,119.98,29.1715]
[1743633760543,0.563,120.03,119.98,8.3347]
[1743633761036,0.063,120.03,119.99,9.7606]
[1743633761933,0.063,120.03,120.02,26.0]
[1743633762243,0.5,120.1,120.02,34.3319]
[1743633762443,10.543,120.11,120.02,55.1617]
[1743633762617,0.5,120.06,120.0,8.3333]
[1743633762823,0.5,120.04,120.0,8.3333]
[1743633763022,10.48,120.04,120.0,8.3333]
[1743633764317,10.48,120.04,119.99,9.7606]
[1743633764520,0.5,120.02,119.99,3.4214]
[1743633765122,0.5,120.01,119.99,3.4214]
[1743633765427,0.5,120.02,119.99,3.4214]
[1743633765825,0.5,120.03,119.99,11.7552]
[1743633766441,0.5,120.03,119.99,3.4214]
[1743633766641,0.5,120.02,119.99,3.4214]
[1743633767049,0.5,120.03,119.99,3.4214]
[1743633767246,0.5,120.02,119.99,3.4214]
[1743633767543,0.5,120.03,119.99,11.7552]
[1743633767725,0.5,120.02,119.99,11.7552]
[1743633768843,0.563,120.04,119.99,11.7552]
[1743633769049,0.063,120.04,119.99,32.5902]
[1743633772246,0.5,120.03,119.99,11.7552]
[1743633772422,0.5,120.0,119.99,3.4214]
[1743633773046,0.5,120.01,119.99,3.4214]
[1743633773347,0.5,120.01,119.99,11.7554]
[1743633773937,0.5,120.01,119.99,3.4214]
[1743633775743,10.36,120.02,119.99,11.7554]
[1743633775949,9.86,120.02,119.99,11.7554]
[1743633776143,10.36,120.02,119.99,11.7554]
[1743633776448,0.563,120.04,119.99,11.7554]
[1743633776655,0.563,120.04,119.99,32.5904]
[1743633776956,0.563,120.04,119.99,32.6204]
[1743633777358,0.063,120.03,119.99,32.6204]
[1743633777957,0.5,120.02,119.99,3.4514]
[1743633778360,0.063,120.03,119.99,11.7852]
[1743633778566,0.5,120.02,119.99,3.4514]
[1743633778747,0.5,120.0,119.99,3.4514]
[1743633779846,0.5,120.01,119.99,3.4514]
[1743633780051,0.5,120.02,119.99,11.7853]
[1743633780251,0.5,120.01,119.99,11.7853]
[1743633780456,0.063,120.03,119.99,11.7853]
[1743633780756,0.063,120.03,119.99,32.6203]
[1743633780957,0.063,120.03,120.02,26.0]
[1743633781160,0.5,120.12,120.06,26.0]
[1743633781349,10.363,120.11,120.03,9.0856]
[1743633781654,0.063,120.11,120.07,2.5483]
[1743633781836,12.3471305,120.16,120.08,0.42648471]
[1743633782038,12.3471305,120.16,120.09,9.0856]
[1743633782244,0.5,120.11,120.09,2.5483]
[1743633782451,0.5,120.08,120.05,2.7332]
[1743633782652,43.82345445,120.06,120.05,2.7332]
[1743633782859,0.5,120.04,120.01,2.7332]
[1743633783366,0.5,120.05,120.01,2.7332]
[1743633783535,0.28432314,120.1,120.01,2.7332]
[1743633783536,10.5,120.04,120.01,2.7332]
[1743633783743,0.5,120.02,120.01,2.7332]
[1743633784143,0.5,120.03,120.01,2.7332]
[1743633784340,10.0,120.04,120.02,8.3319]
[1743633784646,10.06,120.08,120.02,14.7665]
[1743633785057,10.06,120.08,120.02,35.5963]
[1743633785561,0.5,120.11,120.02,35.5963]
[1743633785750,10.58,120.14,120.05,26.0]
[1743633785942,0.5,120.12,120.05,26.0]
[1743633786449,0.5,120.07,120.04,2.5551]
[1743633786757,0.5,120.05,120.04,2.5551]
[1743633787464,0.5,120.03,120.0,2.7794]
[1743633787853,10.58,120.05,120.0,2.7794]
[1743633788051,0.5,120.03,120.0,2.7794]
[1743633788455,10.58,120.05,120.0,2.7794]
[1743633788650,0.5,120.03,120.0,11.1125]
[1743633789058,10.58,120.05,120.0,11.1125]
[1743633789257,0.5,120.03,120.0,11.1125]
[1743633789457,0.5,120.03,120.0,2.7794]
[1743633789765,65.36838229,120.03,120.0,2.7794]
[1743633789968,0.5,120.01,120.0,2.7794]
[1743633790475,10.56,120.01,120.0,2.7794]
[1743633791167,75.42838229,120.01,120.0,2.7794]
[1743633791374,10.56,120.01,120.0,2.7794]
[1743633791876,0.5,120.02,120.0,2.7794]
[1743633792057,0.5,120.05,120.0,11.1126]
[1743633792366,10.56,120.08,120.0,11.1126]
[1743633792578,0.5,120.07,120.0,11.1126]
[1743633792781,0.5,120.08,120.0,31.9459]
[1743633793075,294.1652,120.12,120.01,6.3636]
[1743633793076,0.5,120.06,120.01,6.3636]
[1743633793456,0.5,120.01,120.0,2.7794]
[1743633793752,0.5,120.02,120.0,11.1127]
[1743633793966,0.5,120.03,120.0,11.1127]
[1743633794264,0.5,120.04,120.0,31.946]
[1743633794472,0.5,120.04,120.0,11.1127]
[1743633794674,0.5,120.03,120.0,11.1127]
[1743633794875,0.5,120.04,120.0,11.1127]
[1743633795046,0.5,120.03,120.0,11.1127]
[1743633795252,0.5,120.03,120.0,2.7794]
[1743633795467,0.5,120.02,120.0,11.1126]
[1743633795770,0.5,120.01,120.0,11.1126]
[1743633796169,0.5,120.01,120.0,2.7794]
[1743633796668,65.36838229,120.01,120.0,2.7794]
[1743633797177,73.70098229,120.01,119.99,0.03]
[1743633797367,74.88838229,120.0,119.99,0.03]
[1743633797665,75.38838229,120.0,119.99,0.03]
[1743633799257,10.52,120.0,119.99,0.03]
[1743633799658,0.5,120.0,119.99,0.03]
[1743633800370,0.5,120.01,119.99,0.03]
[1743633800570,0.5,120.0,119.99,0.03]
[1743633801160,0.5,120.01,119.99,0.03]
[1743633801473,0.5,120.0,119.99,0.03]
[1743633801691,0.5,120.04,119.99,0.03]
[1743633802153,0.5,120.01,119.99,0.03]
[1743633802351,0.5,120.03,119.99,0.03]
[1743633802550,0.5,120.01,119.99,0.03]
[1743633802771,0.5,120.01,119.99,8.364]
[1743633803359,0.5,120.01,119.99,0.03]
[1743633803562,10.5,120.0,119.99,0.03]
[1743633803871,75.36838229,120.0,119.99,0.03]
[1743633804375,0.5,120.0,119.99,0.03]
[1743633804569,10.48,120.0,119.99,0.03]
[1743633805078,10.48,120.0,119.99,2.6506]
[1743633805079,0.5,120.0,119.99,2.6506]
[1743633807155,73.70168229,120.0,119.99,2.6506]
[1743633807356,75.30838229,120.0,119.99,2.6506]
[1743633807775,83.64168229,120.0,119.99,0.03]
[1743633808076,75.30838229,120.0,119.99,0.03]
[1743633808489,10.44,120.0,119.99,0.03]
[1743633808796,75.30838229,120.0,119.99,0.03]
[1743633810697,0.5,120.0,119.99,0.03]
[1743633811467,65.36838229,120.0,119.99,0.03]
[1743633811674,0.5,120.0,119.99,0.03]
[1743633812880,73.70168229,120.0,119.99,0.03]